[Event "*** SCC Grand Prix: Titled Tuesday Blitz"]
[Site "Chess.com"]
[Date "2020.06.09"]
[Round "4"]
[White "bascheyaro"]
[Black "Hikaru"]
[Result "0-1"]
[WhiteElo "2744"]
[BlackElo "3235"]
[TimeControl "180+1"]
[EndTime "9:40:01 PDT"]
[Termination "Hikaru won on time"]

1. d4 {[%clk 0:03:00.9]} 1... Nf6 {[%clk 0:02:54.8]} 2. c4 {[%clk 0:03:01]} 2...
b6 {[%clk 0:02:54.7]} 3. Nf3 {[%clk 0:03:00.8]} 3... Bb7 {[%clk 0:02:54.8]} 4.
g3 {[%clk 0:03:00.6]} 4... Bxf3 {[%clk 0:02:54.1]} 5. exf3 {[%clk 0:03:00.8]}
5... c6 {[%clk 0:02:55]} 6. Nc3 {[%clk 0:03:00.3]} 6... e6 {[%clk 0:02:55.3]} 7.
Be3 {[%clk 0:02:56.1]} 7... d5 {[%clk 0:02:52]} 8. b3 {[%clk 0:02:55.8]} 8...
Bb4 {[%clk 0:02:48.8]} 9. Qd2 {[%clk 0:02:55.4]} 9... O-O {[%clk 0:02:48.5]} 10.
a3 {[%clk 0:02:55.1]} 10... Bd6 {[%clk 0:02:48.3]} 11. h4 {[%clk 0:02:54.7]}
11... Nbd7 {[%clk 0:02:44.7]} 12. h5 {[%clk 0:02:51.7]} 12... e5 {[%clk
0:02:38.7]} 13. cxd5 {[%clk 0:02:50.2]} 13... exd4 {[%clk 0:02:32.9]} 14. Bxd4
{[%clk 0:02:37.5]} 14... cxd5 {[%clk 0:02:31.6]} 15. Bd3 {[%clk 0:02:34.6]}
15... Nc5 {[%clk 0:02:22.9]} 16. Bc2 {[%clk 0:02:30.2]} 16... Ne6 {[%clk
0:02:21.6]} 17. Kf1 {[%clk 0:02:17.5]} 17... Re8 {[%clk 0:01:42]} 18. Rd1 {[%clk
0:02:08.4]} 18... Rc8 {[%clk 0:01:26.6]} 19. Ne2 {[%clk 0:02:04.1]} 19... Nxd4
{[%clk 0:01:18.3]} 20. Nxd4 {[%clk 0:02:04.3]} 20... Bxa3 {[%clk 0:01:18.9]} 21.
Nf5 {[%clk 0:01:58.1]} 21... Bf8 {[%clk 0:01:15.6]} 22. Bb1 {[%clk 0:01:50.3]}
22... d4 {[%clk 0:01:11.4]} 23. Qg5 {[%clk 0:01:48.1]} 23... Rc7 {[%clk
0:00:21]} 24. Rxd4 {[%clk 0:01:02.9]} 24... Qc8 {[%clk 0:00:21.4]} 25. Nxg7
{[%clk 0:00:58.3]} 25... h6 {[%clk 0:00:18.6]} 26. Nxe8+ {[%clk 0:00:41.1]}
26... hxg5 {[%clk 0:00:19]} 27. Nxf6+ {[%clk 0:00:41.3]} 27... Kg7 {[%clk
0:00:18.4]} 28. h6+ {[%clk 0:00:17.8]} 28... Kxf6 {[%clk 0:00:18.5]} 29. Kg2
{[%clk 0:00:18.4]} 29... Rc1 {[%clk 0:00:17.2]} 30. Rxc1 {[%clk 0:00:05.8]}
30... Qxc1 {[%clk 0:00:18.1]} 31. h7 {[%clk 0:00:06.4]} 31... Bg7 {[%clk
0:00:18.4]} 32. Be4 {[%clk 0:00:06.3]} 32... Qc3 {[%clk 0:00:16.2]} 33. Rd8
{[%clk 0:00:05.8]} 33... Ke7 {[%clk 0:00:16.4]} 34. Ra8 {[%clk 0:00:05.1]} 34...
a5 {[%clk 0:00:14.2]} 35. Ra7+ {[%clk 0:00:05.4]} 35... Ke6 {[%clk 0:00:14.7]}
36. g4 {[%clk 0:00:05.5]} 36... Bd4 {[%clk 0:00:15]} 37. Bf5+ {[%clk 0:00:05.8]}
37... Kd6 {[%clk 0:00:14.5]} 38. Rd7+ {[%clk 0:00:05.9]} 38... Kc6 {[%clk
0:00:15.1]} 39. Rd8 {[%clk 0:00:05.7]} 39... Qb2 {[%clk 0:00:14.5]} 40. Kh3
{[%clk 0:00:04.7]} 40... Kb5 {[%clk 0:00:14.4]} 41. Bd3+ {[%clk 0:00:04.3]}
41... Kb4 {[%clk 0:00:14.6]} 42. Be2 {[%clk 0:00:03.1]} 42... Bf6 {[%clk
0:00:13.7]} 43. Rd6 {[%clk 0:00:01.1]} 43... Kc5 {[%clk 0:00:10.2]} 0-1

[Event "*** SCC Grand Prix: Titled Tuesday Blitz"]
[Site "Chess.com"]
[Date "2020.06.09"]
[Round "4"]
[White "olksuna"]
[Black "manmanlai1"]
[Result "1-0"]
[WhiteElo "2617"]
[BlackElo "2387"]
[TimeControl "180+1"]
[EndTime "9:40:01 PDT"]
[Termination "olksuna won by resignation"]

1. c4 {[%clk 0:03:00.9]} 1... e6 {[%clk 0:02:56.3]} 2. Nc3 {[%clk 0:03:00.8]}
2... d5 {[%clk 0:02:56.1]} 3. e3 {[%clk 0:03:01.5]} 3... Nf6 {[%clk 0:02:52.9]}
4. Nf3 {[%clk 0:03:02]} 4... Be7 {[%clk 0:02:51.9]} 5. b3 {[%clk 0:03:02]} 5...
O-O {[%clk 0:02:50.2]} 6. Bb2 {[%clk 0:03:02.5]} 6... b6 {[%clk 0:02:50.3]} 7.
d4 {[%clk 0:02:58.7]} 7... Bb7 {[%clk 0:02:48.5]} 8. Bd3 {[%clk 0:02:59.3]} 8...
Nbd7 {[%clk 0:02:47]} 9. O-O {[%clk 0:02:58.3]} 9... a6 {[%clk 0:02:41.6]} 10.
a4 {[%clk 0:02:56.9]} 10... Bb4 {[%clk 0:02:31.6]} 11. Qe2 {[%clk 0:02:45.2]}
11... Ne4 {[%clk 0:02:21.5]} 12. Rac1 {[%clk 0:02:31.3]} 12... Nxc3 {[%clk
0:01:49.4]} 13. Bxc3 {[%clk 0:02:32.2]} 13... Bxc3 {[%clk 0:01:49.6]} 14. Rxc3
{[%clk 0:02:33]} 14... c5 {[%clk 0:01:47.5]} 15. cxd5 {[%clk 0:02:31.3]} 15...
Bxd5 {[%clk 0:01:45.9]} 16. Rfc1 {[%clk 0:02:15.9]} 16... Bxf3 {[%clk 0:01:35]}
17. Qxf3 {[%clk 0:02:16.8]} 17... cxd4 {[%clk 0:01:34.3]} 18. exd4 {[%clk
0:02:17.7]} 18... Nf6 {[%clk 0:01:33.2]} 19. Rc4 {[%clk 0:01:59.9]} 19... Qd6
{[%clk 0:01:20.7]} 20. h3 {[%clk 0:01:45.3]} 20... Rfd8 {[%clk 0:00:57.7]} 21.
Qxa8 {[%clk 0:01:24]} 21... Rxa8 {[%clk 0:00:56.2]} 22. Rc8+ {[%clk 0:01:24.7]}
22... Rxc8 {[%clk 0:00:47.9]} 23. Rxc8+ {[%clk 0:01:25.6]} 23... Qf8 {[%clk
0:00:48.4]} 24. Rxf8+ {[%clk 0:01:24.8]} 24... Kxf8 {[%clk 0:00:49]} 25. Bxa6
{[%clk 0:01:25.3]} 25... Ke7 {[%clk 0:00:48.9]} 26. Kf1 {[%clk 0:01:22.3]} 26...
Nd5 {[%clk 0:00:40.4]} 27. Bc4 {[%clk 0:01:21.3]} 27... Nb4 {[%clk 0:00:39]} 28.
Ke2 {[%clk 0:01:19.6]} 28... Kd6 {[%clk 0:00:39.2]} 29. Kd2 {[%clk 0:01:17.1]}
29... f6 {[%clk 0:00:39.5]} 30. f4 {[%clk 0:00:49.5]} 30... h6 {[%clk
0:00:38.5]} 31. h4 {[%clk 0:00:47.5]} 31... g5 {[%clk 0:00:31.6]} 32. g3 {[%clk
0:00:44.3]} 32... gxh4 {[%clk 0:00:27.1]} 33. gxh4 {[%clk 0:00:44.1]} 33... Na2
{[%clk 0:00:22.6]} 34. Kc2 {[%clk 0:00:40.2]} 34... Nb4+ {[%clk 0:00:22.4]} 35.
Kb2 {[%clk 0:00:40.5]} 35... Nc6 {[%clk 0:00:22]} 36. Kc3 {[%clk 0:00:39.7]}
36... Ne7 {[%clk 0:00:20.9]} 37. h5 {[%clk 0:00:33.3]} 37... Nf5 {[%clk
0:00:09.2]} 38. Be2 {[%clk 0:00:30.5]} 38... Kc6 {[%clk 0:00:05.4]} 39. Bf3+
{[%clk 0:00:28.8]} 39... Kc7 {[%clk 0:00:05.2]} 40. b4 {[%clk 0:00:29]} 40...
Ne7 {[%clk 0:00:02.9]} 41. a5 {[%clk 0:00:27.7]} 41... Nd5+ {[%clk 0:00:02.7]}
42. Bxd5 {[%clk 0:00:17.6]} 42... exd5 {[%clk 0:00:03.6]} 43. axb6+ {[%clk
0:00:13.5]} 43... Kxb6 {[%clk 0:00:04.5]} 44. Kb3 {[%clk 0:00:10.4]} 44... Kb5
{[%clk 0:00:04.7]} 45. f5 {[%clk 0:00:08.4]} 45... Ka6 {[%clk 0:00:03.8]} 46.
Ka4 {[%clk 0:00:08.6]} 46... Kb6 {[%clk 0:00:04.3]} 47. b5 {[%clk 0:00:09.5]}
1-0

[Event "*** SCC Grand Prix: Titled Tuesday Blitz"]
[Site "Chess.com"]
[Date "2020.06.09"]
[Round "4"]
[White "topotun"]
[Black "yobdc"]
[Result "1-0"]
[WhiteElo "2607"]
[BlackElo "2234"]
[TimeControl "180+1"]
[EndTime "9:40:01 PDT"]
[Termination "topotun won by resignation"]

1. e4 {[%clk 0:03:00.9]} 1... e5 {[%clk 0:02:59.8]} 2. Nf3 {[%clk 0:03:01.1]}
2... Nc6 {[%clk 0:02:59.9]} 3. Bb5 {[%clk 0:03:00.9]} 3... a6 {[%clk 0:03:00.1]}
4. Ba4 {[%clk 0:03:01.2]} 4... Nf6 {[%clk 0:03:00.5]} 5. Qe2 {[%clk 0:03:00.9]}
5... d6 {[%clk 0:02:57]} 6. c3 {[%clk 0:02:58.3]} 6... Be7 {[%clk 0:02:53.7]} 7.
O-O {[%clk 0:02:58.1]} 7... O-O {[%clk 0:02:53.7]} 8. Rd1 {[%clk 0:02:58]} 8...
Re8 {[%clk 0:02:48.3]} 9. d4 {[%clk 0:02:51.2]} 9... exd4 {[%clk 0:02:47.1]} 10.
cxd4 {[%clk 0:02:52.1]} 10... Bf8 {[%clk 0:02:47.4]} 11. e5 {[%clk 0:02:43.2]}
11... Bg4 {[%clk 0:02:25.8]} 12. h3 {[%clk 0:02:13.4]} 12... Bxf3 {[%clk
0:02:08.6]} 13. Qxf3 {[%clk 0:02:14.3]} 13... dxe5 {[%clk 0:01:49.8]} 14. dxe5
{[%clk 0:02:07.1]} 14... Nxe5 {[%clk 0:01:48]} 15. Qxb7 {[%clk 0:02:07.2]} 15...
Qc8 {[%clk 0:01:33.2]} 16. Qxc8 {[%clk 0:01:58.8]} 16... Rexc8 {[%clk
0:01:32.5]} 17. Nc3 {[%clk 0:01:59]} 17... Rab8 {[%clk 0:01:30.4]} 18. b3 {[%clk
0:01:43.1]} 18... Rd8 {[%clk 0:01:19.2]} 19. Bg5 {[%clk 0:01:38.8]} 19... Be7
{[%clk 0:01:05.1]} 20. Kf1 {[%clk 0:01:24.4]} 20... Rxd1+ {[%clk 0:00:26.7]} 21.
Rxd1 {[%clk 0:01:25.3]} 21... Rd8 {[%clk 0:00:26.8]} 22. Rxd8+ {[%clk
0:00:50.6]} 22... Bxd8 {[%clk 0:00:27.7]} 23. Ke2 {[%clk 0:00:51]} 23... h6
{[%clk 0:00:26.9]} 24. Be3 {[%clk 0:00:46.3]} 24... Kf8 {[%clk 0:00:25]} 25. Bd4
{[%clk 0:00:43]} 25... Ng6 {[%clk 0:00:16.1]} 26. g3 {[%clk 0:00:35.7]} 26...
Be7 {[%clk 0:00:16.3]} 27. Bc6 {[%clk 0:00:31.5]} 27... Ne8 {[%clk 0:00:16.1]}
28. Nd5 {[%clk 0:00:25.6]} 28... Nd6 {[%clk 0:00:13.6]} 29. a4 {[%clk
0:00:18.8]} 29... Bd8 {[%clk 0:00:12.3]} 30. f4 {[%clk 0:00:13.4]} 30... Ne7
{[%clk 0:00:12.6]} 31. Nxe7 {[%clk 0:00:13.1]} 31... Bxe7 {[%clk 0:00:13.5]} 32.
Kd3 {[%clk 0:00:12.7]} 32... Nf5 {[%clk 0:00:11.1]} 33. Bf2 {[%clk 0:00:12.4]}
33... Bb4 {[%clk 0:00:10.3]} 34. g4 {[%clk 0:00:12.4]} 34... Ne7 {[%clk
0:00:10.5]} 35. Be4 {[%clk 0:00:10.5]} 35... a5 {[%clk 0:00:10.2]} 36. Kc4
{[%clk 0:00:10.8]} 36... f5 {[%clk 0:00:09.9]} 37. Bxf5 {[%clk 0:00:09.6]} 37...
Nxf5 {[%clk 0:00:10.2]} 38. gxf5 {[%clk 0:00:10.5]} 38... Kf7 {[%clk 0:00:10.5]}
39. Bd4 {[%clk 0:00:11]} 39... c6 {[%clk 0:00:09.6]} 40. Be5 {[%clk 0:00:10.9]}
40... g6 {[%clk 0:00:08.6]} 41. fxg6+ {[%clk 0:00:10.9]} 41... Kxg6 {[%clk
0:00:09.5]} 42. Bc3 {[%clk 0:00:11.7]} 42... Bxc3 {[%clk 0:00:06.1]} 43. Kxc3
{[%clk 0:00:12.6]} 43... Kf5 {[%clk 0:00:06.8]} 44. b4 {[%clk 0:00:13.1]} 44...
axb4+ {[%clk 0:00:06.9]} 45. Kxb4 {[%clk 0:00:14]} 45... Kxf4 {[%clk 0:00:06.7]}
46. a5 {[%clk 0:00:14.4]} 46... Ke5 {[%clk 0:00:05.9]} 47. Kc5 {[%clk
0:00:14.4]} 47... h5 {[%clk 0:00:04.2]} 48. a6 {[%clk 0:00:15.3]} 1-0

[Event "*** SCC Grand Prix: Titled Tuesday Blitz"]
[Site "Chess.com"]
[Date "2020.06.09"]
[Round "4"]
[White "marianokar"]
[Black "dosto07"]
[Result "0-1"]
[WhiteElo "2394"]
[BlackElo "2133"]
[TimeControl "180+1"]
[EndTime "9:40:01 PDT"]
[Termination "dosto07 won on time"]

1. e4 {[%clk 0:03:00.9]} 1... e5 {[%clk 0:02:55]} 2. Nf3 {[%clk 0:02:59.7]} 2...
Nc6 {[%clk 0:02:53]} 3. Bb5 {[%clk 0:02:58.4]} 3... a6 {[%clk 0:02:52.6]} 4. Ba4
{[%clk 0:02:58.1]} 4... Nf6 {[%clk 0:02:52.4]} 5. O-O {[%clk 0:02:58.1]} 5...
Be7 {[%clk 0:02:52.2]} 6. Re1 {[%clk 0:02:54.6]} 6... b5 {[%clk 0:02:51.9]} 7.
Bb3 {[%clk 0:02:54.8]} 7... d6 {[%clk 0:02:52.3]} 8. c3 {[%clk 0:02:54.3]} 8...
O-O {[%clk 0:02:50.4]} 9. h3 {[%clk 0:02:54.5]} 9... Nb8 {[%clk 0:02:49.4]} 10.
d4 {[%clk 0:02:44.2]} 10... Nbd7 {[%clk 0:02:48]} 11. Nbd2 {[%clk 0:02:44.4]}
11... Bb7 {[%clk 0:02:43]} 12. Bc2 {[%clk 0:02:44.3]} 12... Re8 {[%clk
0:02:42.1]} 13. Nf1 {[%clk 0:02:43.8]} 13... Bf8 {[%clk 0:02:42]} 14. Ng3 {[%clk
0:02:44.3]} 14... g6 {[%clk 0:02:42]} 15. a4 {[%clk 0:02:43.7]} 15... c5 {[%clk
0:02:41.4]} 16. d5 {[%clk 0:02:42.8]} 16... c4 {[%clk 0:02:40.9]} 17. Bg5 {[%clk
0:02:36.9]} 17... Bg7 {[%clk 0:02:29.8]} 18. Qd2 {[%clk 0:02:36.2]} 18... Qe7
{[%clk 0:02:20.4]} 19. Ra3 {[%clk 0:02:19.1]} 19... Nc5 {[%clk 0:02:05.1]} 20.
Rea1 {[%clk 0:02:14.3]} 20... Reb8 {[%clk 0:01:55.6]} 21. R1a2 {[%clk
0:01:45.1]} 21... Qf8 {[%clk 0:01:50.5]} 22. Be3 {[%clk 0:01:32.7]} 22... Nfd7
{[%clk 0:01:48.5]} 23. Nh2 {[%clk 0:00:55.8]} 23... h5 {[%clk 0:01:39.3]} 24.
Bg5 {[%clk 0:00:35.8]} 24... Kh7 {[%clk 0:01:36.4]} 25. Nf3 {[%clk 0:00:33.6]}
25... f6 {[%clk 0:01:32.5]} 26. Be3 {[%clk 0:00:33.4]} 26... Bh6 {[%clk
0:01:32.3]} 27. Bxh6 {[%clk 0:00:17.8]} 27... Qxh6 {[%clk 0:01:31.3]} 28. Qd1
{[%clk 0:00:16.2]} 28... Nb6 {[%clk 0:01:11]} 29. axb5 {[%clk 0:00:15.4]} 29...
axb5 {[%clk 0:01:10.1]} 30. Qa1 {[%clk 0:00:13.9]} 30... Nba4 {[%clk 0:00:45]}
31. Ne2 {[%clk 0:00:09.9]} 31... g5 {[%clk 0:00:24.8]} 32. Qc1 {[%clk
0:00:06.9]} 32... g4 {[%clk 0:00:23.3]} 33. Qxh6+ {[%clk 0:00:06.2]} 33... Kxh6
{[%clk 0:00:23.2]} 34. Nh4 {[%clk 0:00:07.1]} 34... gxh3 {[%clk 0:00:19.1]} 35.
Nf5+ {[%clk 0:00:06.8]} 35... Kh7 {[%clk 0:00:17]} 36. g3 {[%clk 0:00:05.9]}
36... Rd8 {[%clk 0:00:16]} 37. Bxa4 {[%clk 0:00:04.3]} 37... bxa4 {[%clk
0:00:14.8]} 38. f3 {[%clk 0:00:04.9]} 38... Ba6 {[%clk 0:00:12.3]} 39. Kh2
{[%clk 0:00:04]} 39... Bb5 {[%clk 0:00:10.7]} 40. Kxh3 {[%clk 0:00:03.9]} 40...
Nd3 {[%clk 0:00:09.7]} 41. Ne3 {[%clk 0:00:02.2]} 41... Ra7 {[%clk 0:00:08.9]}
42. Nf5 {[%clk 0:00:02.1]} 42... Rf7 {[%clk 0:00:08.5]} 43. Ra1 {[%clk
0:00:01.8]} 43... Rg8 {[%clk 0:00:09.1]} 44. Rh1 {[%clk 0:00:01.4]} 44... Nf2+
{[%clk 0:00:09.4]} 0-1

[Event "*** SCC Grand Prix: Titled Tuesday Blitz"]
[Site "Chess.com"]
[Date "2020.06.09"]
[Round "4"]
[White "Kapibara_Warri0r"]
[Black "djano"]
[Result "0-1"]
[WhiteElo "2124"]
[BlackElo "2412"]
[TimeControl "180+1"]
[EndTime "9:40:07 PDT"]
[Termination "djano won on time"]

1. e4 {[%clk 0:02:56.6]} 1... g6 {[%clk 0:02:59.9]} 2. d4 {[%clk 0:02:56.3]}
2... Bg7 {[%clk 0:03:00.3]} 3. Nc3 {[%clk 0:02:56.4]} 3... d6 {[%clk 0:03:00.4]}
4. Be3 {[%clk 0:02:56.5]} 4... a6 {[%clk 0:03:00.8]} 5. Qd2 {[%clk 0:02:56.1]}
5... b5 {[%clk 0:03:01.3]} 6. h4 {[%clk 0:02:54.4]} 6... h6 {[%clk 0:02:59.5]}
7. f3 {[%clk 0:02:53.1]} 7... Bb7 {[%clk 0:02:59.2]} 8. g4 {[%clk 0:02:51.9]}
8... Nd7 {[%clk 0:02:59.1]} 9. Nge2 {[%clk 0:02:41.1]} 9... Rc8 {[%clk
0:02:58.5]} 10. Nf4 {[%clk 0:02:32.1]} 10... e5 {[%clk 0:02:41.8]} 11. dxe5
{[%clk 0:01:57.4]} 11... Nxe5 {[%clk 0:02:42.7]} 12. Be2 {[%clk 0:01:56.9]}
12... Ne7 {[%clk 0:02:38.5]} 13. Ncd5 {[%clk 0:01:18.7]} 13... Nxd5 {[%clk
0:02:27.8]} 14. exd5 {[%clk 0:01:15.2]} 14... c5 {[%clk 0:02:18.9]} 15. Kf2
{[%clk 0:00:46]} 15... Qc7 {[%clk 0:02:02.9]} 16. c3 {[%clk 0:00:42]} 16... Rb8
{[%clk 0:01:51.3]} 17. Nh3 {[%clk 0:00:32.9]} 17... Qe7 {[%clk 0:01:45.6]} 18.
Ng1 {[%clk 0:00:23.3]} 18... h5 {[%clk 0:01:39.9]} 19. g5 {[%clk 0:00:22.5]}
19... O-O {[%clk 0:01:39.7]} 20. f4 {[%clk 0:00:22.1]} 20... Nc4 {[%clk
0:01:38.6]} 21. Bxc4 {[%clk 0:00:21.7]} 21... bxc4 {[%clk 0:01:39.5]} 22. Nf3
{[%clk 0:00:21.4]} 22... Qe4 {[%clk 0:01:35.7]} 23. Rac1 {[%clk 0:00:18.5]}
23... Qxd5 {[%clk 0:01:34.4]} 24. Qxd5 {[%clk 0:00:16.5]} 24... Bxd5 {[%clk
0:01:35.3]} 25. Rhd1 {[%clk 0:00:16.6]} 25... Rxb2+ {[%clk 0:01:35.1]} 26. Kg3
{[%clk 0:00:15.1]} 26... Be6 {[%clk 0:01:28.5]} 27. Rxd6 {[%clk 0:00:14.4]}
27... Rxa2 {[%clk 0:01:28.7]} 28. Ne5 {[%clk 0:00:12.3]} 28... Rc8 {[%clk
0:01:22.9]} 29. Nd7 {[%clk 0:00:09.3]} 29... Bxd7 {[%clk 0:01:10.5]} 30. Rxd7
{[%clk 0:00:10.2]} 30... Re2 {[%clk 0:01:06.7]} 31. Bf2 {[%clk 0:00:09.6]} 31...
Ra8 {[%clk 0:01:02.1]} 32. Rc7 {[%clk 0:00:08.9]} 32... a5 {[%clk 0:01:00.1]}
33. Rxc5 {[%clk 0:00:09.3]} 33... a4 {[%clk 0:00:58.8]} 34. Rxc4 {[%clk
0:00:09.7]} 34... a3 {[%clk 0:00:59.3]} 35. Ra1 {[%clk 0:00:09.6]} 35... a2
{[%clk 0:00:59.5]} 36. Rc7 {[%clk 0:00:06.6]} 36... Bf8 {[%clk 0:00:55.4]} 37.
Ra7 {[%clk 0:00:05.9]} 37... Rxa7 {[%clk 0:00:46.8]} 38. Bxa7 {[%clk 0:00:06.8]}
38... Ba3 {[%clk 0:00:46.3]} 39. Bd4 {[%clk 0:00:06.5]} 39... Rd2 {[%clk
0:00:43]} 40. Kf3 {[%clk 0:00:06.2]} 40... Kf8 {[%clk 0:00:43.5]} 41. Ke3 {[%clk
0:00:06]} 41... Rh2 {[%clk 0:00:43.5]} 42. Kd3 {[%clk 0:00:05.8]} 42... Ke8
{[%clk 0:00:40.4]} 43. Kc4 {[%clk 0:00:06.2]} 43... Bd6 {[%clk 0:00:39.4]} 44.
Kb3 {[%clk 0:00:05.8]} 44... Bxf4 {[%clk 0:00:39.3]} 45. Rxa2 {[%clk 0:00:05.9]}
45... Rxh4 {[%clk 0:00:37.5]} 46. Ra8+ {[%clk 0:00:04.9]} 46... Kd7 {[%clk
0:00:37.3]} 47. Bf6 {[%clk 0:00:05.1]} 47... Rh1 {[%clk 0:00:34.7]} 48. Ra7+
{[%clk 0:00:05.3]} 48... Ke6 {[%clk 0:00:33.3]} 49. Re7+ {[%clk 0:00:05.7]}
49... Kd6 {[%clk 0:00:32.7]} 50. Rxf7 {[%clk 0:00:05.6]} 50... h4 {[%clk
0:00:33.2]} 51. Rh7 {[%clk 0:00:04.9]} 51... h3 {[%clk 0:00:33.6]} 52. Rh6
{[%clk 0:00:04.6]} 52... h2 {[%clk 0:00:33.1]} 53. Bd4 {[%clk 0:00:01.8]} 53...
Rb1+ {[%clk 0:00:32.4]} 54. Kc4 {[%clk 0:00:02]} 54... h1=Q {[%clk 0:00:33.3]}
55. Rxh1 {[%clk 0:00:02]} 55... Rxh1 {[%clk 0:00:32.1]} 56. Bc5+ {[%clk
0:00:02.3]} 56... Kc6 {[%clk 0:00:31.9]} 57. Be7 {[%clk 0:00:02.2]} 57... Rg1
{[%clk 0:00:31]} 0-1

[Event "*** SCC Grand Prix: Titled Tuesday Blitz"]
[Site "Chess.com"]
[Date "2020.06.09"]
[Round "4"]
[White "BilguunSu"]
[Black "Savva09022009"]
[Result "1-0"]
[WhiteElo "2611"]
[BlackElo "2432"]
[TimeControl "180+1"]
[EndTime "9:40:08 PDT"]
[Termination "BilguunSu won by resignation"]

1. e4 {[%clk 0:03:00.9]} 1... c5 {[%clk 0:02:58.1]} 2. Nf3 {[%clk 0:03:01.3]}
2... Nc6 {[%clk 0:02:58]} 3. Bb5 {[%clk 0:03:00]} 3... Nf6 {[%clk 0:02:55.9]} 4.
d3 {[%clk 0:02:53.9]} 4... Qa5+ {[%clk 0:02:52.8]} 5. Nc3 {[%clk 0:02:53.2]}
5... Nd4 {[%clk 0:02:53.7]} 6. Bc4 {[%clk 0:02:51.7]} 6... b5 {[%clk 0:02:53.4]}
7. Bd5 {[%clk 0:02:38.7]} 7... Nxd5 {[%clk 0:02:51.9]} 8. exd5 {[%clk
0:02:38.3]} 8... Bb7 {[%clk 0:02:51.8]} 9. O-O {[%clk 0:02:36.6]} 9... b4 {[%clk
0:02:44.4]} 10. Nxd4 {[%clk 0:02:33.9]} 10... cxd4 {[%clk 0:02:38.7]} 11. Ne4
{[%clk 0:02:32.3]} 11... Bxd5 {[%clk 0:02:36.9]} 12. Re1 {[%clk 0:02:31.9]}
12... e6 {[%clk 0:02:34.4]} 13. Bd2 {[%clk 0:02:23.8]} 13... Be7 {[%clk
0:02:31.3]} 14. Qg4 {[%clk 0:02:19.8]} 14... O-O {[%clk 0:02:05]} 15. Bh6 {[%clk
0:02:16.7]} 15... g6 {[%clk 0:02:05.1]} 16. Bxf8 {[%clk 0:02:13.3]} 16... Rxf8
{[%clk 0:02:06]} 17. Qf4 {[%clk 0:02:12.7]} 17... Kg7 {[%clk 0:02:02.4]} 18. h4
{[%clk 0:02:06.9]} 18... f6 {[%clk 0:02:00.9]} 19. Nd2 {[%clk 0:01:59.1]} 19...
e5 {[%clk 0:01:59.5]} 20. Qg3 {[%clk 0:01:58.7]} 20... d6 {[%clk 0:01:53.9]} 21.
Nb3 {[%clk 0:01:57.9]} 21... Qb6 {[%clk 0:01:52.5]} 22. a3 {[%clk 0:01:52.6]}
22... bxa3 {[%clk 0:01:46.9]} 23. Rxa3 {[%clk 0:01:52]} 23... f5 {[%clk
0:01:47.8]} 24. Rea1 {[%clk 0:01:49.5]} 24... f4 {[%clk 0:01:46.5]} 25. Qg4
{[%clk 0:01:48.3]} 25... Ra8 {[%clk 0:01:43.9]} 26. Qd7 {[%clk 0:01:45.6]} 26...
Kf7 {[%clk 0:01:41.6]} 27. Rxa7 {[%clk 0:01:44.2]} 27... Re8 {[%clk 0:01:36.3]}
28. h5 {[%clk 0:01:24.6]} 28... f3 {[%clk 0:01:10.1]} 29. g3 {[%clk 0:00:53.2]}
29... Be6 {[%clk 0:00:31.9]} 30. Qb7 {[%clk 0:00:52.2]} 30... Qxb7 {[%clk
0:00:25.9]} 31. Rxb7 {[%clk 0:00:51.6]} 31... gxh5 {[%clk 0:00:25.7]} 32. Raa7
{[%clk 0:00:49]} 32... h4 {[%clk 0:00:19.9]} 33. Nd2 {[%clk 0:00:39]} 33... hxg3
{[%clk 0:00:19]} 34. fxg3 {[%clk 0:00:37.4]} 34... Bd5 {[%clk 0:00:18.2]} 35.
Rb5 {[%clk 0:00:35.3]} 35... Ke6 {[%clk 0:00:17.4]} 36. Kf2 {[%clk 0:00:34.2]}
36... Rf8 {[%clk 0:00:16.1]} 37. Ne4 {[%clk 0:00:27.4]} 37... h5 {[%clk
0:00:13]} 38. Rxd5 {[%clk 0:00:20.4]} 38... Kxd5 {[%clk 0:00:12.5]} 39. Rxe7
{[%clk 0:00:19.6]} 39... Rb8 {[%clk 0:00:07]} 40. Rd7 {[%clk 0:00:12.3]} 40...
Ke6 {[%clk 0:00:03.5]} 41. Rxd6+ {[%clk 0:00:11.9]} 41... Ke7 {[%clk 0:00:04.4]}
42. Rd5 {[%clk 0:00:11.3]} 42... Rxb2 {[%clk 0:00:03.7]} 43. Rxe5+ {[%clk
0:00:11.2]} 43... Kf7 {[%clk 0:00:04.6]} 44. Rc5 {[%clk 0:00:11.1]} 44... Kg6
{[%clk 0:00:02.4]} 45. Kxf3 {[%clk 0:00:11.6]} 45... Rb1 {[%clk 0:00:01.3]} 46.
Kf4 {[%clk 0:00:11.2]} 46... Kg7 {[%clk 0:00:01.7]} 47. Kg5 {[%clk 0:00:11]}
47... Rg1 {[%clk 0:00:02.4]} 48. Kxh5 {[%clk 0:00:10.7]} 1-0